[Event "12th WLC Weekend 2022"]
[Site "Eindhoven"]
[Date "2022.05.13"]
[Round "1.1"]
[White "Duson, Robin"]
[Black "Beerdsen, Thomas"]
[Result "0-1"]
[ECO "E55"]
[WhiteElo "1980"]
[BlackElo "2497"]
[Annotator "TA"]
[PlyCount "70"]
[EventDate "2022.05.13"]
[EventType "swiss"]
[EventCountry "NED"]
[SourceTitle "playchess.com"]
[Source "ChessBase"]
[SourceQuality "1"]
[TimeControl "5400+30"]

{[%evp 22,69,0,-12,0,0,0,-12,0,-32,-28,-28,-35,-20,-26,-28,-30,-33,-33,-28,-34,-30,-34,-50,-45,-60,-34,-113,-73,-67,-60,-172,-156,-206,-190,-202,-204,-371,-368,-414,-347,-418,-418,-2180,-1067,-2010,-1949,-29998,-29999,-29999]} 1. d4 {[%emt 0:00:03]} Nf6 {[%emt 0:00:05]} 2. c4 {[%emt 0:00:08]} e6 {[%emt 0:00:14]} 3. Nc3 {[%emt 0:00:16]} Bb4 {[%emt 0:00:07]} 4. e3 {[%emt 0:00:28]} O-O {[%emt 0:00:18]} 5. Bd3 {[%emt 0:00:26]} c5 {[%emt 0:00:14]} 6. Nf3 {[%emt 0:01:54]} d5 {[%emt 0:00:26]} 7. O-O {[%emt 0:00:18]} cxd4 {[%emt 0:00:16]} 8. exd4 {[%emt 0:00:08]} dxc4 {[%emt 0:00:06]} 9. Bxc4 {[%emt 0:00:06]} b6 {[%emt 0:00:07]} 10. Bg5 {[%emt 0:07:07]} Bb7 {[%emt 0:00:13]} 11. Qe2 {[%emt 0:07:38]} Nbd7 {[%emt 0:04:29]} 12. Rfd1 {[%emt 0:04:10]} h6 {[%emt 0:03:38] [#] White must now prevent ...Bxf3. E55: Nimzo-Indian: Rubinstein: Main Line: 7...dxc4 8 Bxc4 Nbd7.} 13. Bh4 {[%emt 0:05:15]} Bxc3 {[%emt 0:08:44]} 14. bxc3 {[%emt 0:00:08]} Qc7 {[%emt 0:01:25] The position is equal.} 15. Rac1 {[%emt 0:15:36] [#]} Bxf3 $146 {[%emt 0:00:20]} ({Predecessor:} 15... a6 16. Bd3 b5 17. c4 bxc4 18. Rxc4 Qa5 19. Ne5 Rfc8 20. Rdc1 Rxc4 21. Rxc4 Rc8 22. Rxc8+ Bxc8 {½-½ (40) Chery,E-Andraud,G France 1994}) 16. gxf3 {[%emt 0:00:12]} Nh5 {[%emt 0:06:59]} 17. Bb3 {[%emt 0:06:39]} Ndf6 {[%emt 0:03:39]} 18. Bg3 {[%emt 0:02:12]} Nf4 {[%emt 0:01:15]} 19. Qe3 {[%emt 0:03:15]} N6h5 {[%emt 0:01:36] Pair of Knights!} 20. Kh1 {[%emt 0:07:53]} Rfd8 {[%emt 0:03:45]} 21. c4 {[%emt 0:04:19]} Rac8 {[%emt 0:02:19]} 22. a4 {[%emt 0:05:47]} g5 {[%emt 0:01:14]} 23. Rg1 {[%emt 0:05:25]} Kh8 {[%emt 0:02:48]} 24. h4 {[%emt 0:02:56]} ({Better is} 24. Ra1 $15) 24... Qe7 {[%emt 0:05:27]} 25. Rce1 {[%emt 0:03:21]} Qf6 {[%emt 0:00:38] 0x0.0024afd4635cdp-1022s more active pieces.} 26. Bxf4 {[%emt 0:03:53]} (26. Bh2 $15) 26... Nxf4 $19 {[%emt 0:00:45]} ({Weaker is} 26... gxf4 27. Qe5 Qxe5 28. Rxe5 $11) 27. hxg5 {[%emt 0:01:17]} (27. Rd1 $17 {is a better defense.}) 27... hxg5 $40 {[%emt 0:00:09][%cal Rf6h6][%mdl 128] [#] Black is out for blood.} 28. Qe5 {[%emt 0:00:13]} Qxe5 {[%emt 0:00:27]} 29. Rxe5 $2 {[%emt 0:01:45]} (29. dxe5 {was the only chance.} Nh3 30. Rg3 Nxf2+ 31. Kg1) 29... f6 {[%emt 0:00:07][%cal Bf7f6,Bf6f5][%mdl 32]} 30. Re4 {[%emt 0:00:37]} Rc7 {[%emt 0:01:12][%cal Rc7h7] Inhibits c5.} 31. Rd1 {[%emt 0:01:34]} f5 {[%emt 0:00:34]} 32. Re5 {[%emt 0:00:32]} (32. Rxf4 $142 gxf4 33. Kg2) 32... Rh7+ {[%emt 0:00:20]} 33. Kg1 {[%emt 0:00:10]} Kg7 {[%emt 0:00:08] ( -> ...Rdh8)} 34. d5 {[%emt 0:01:03]} Rdh8 {[%emt 0:00:05][%csl Gh8][%cal Rh7h1]} 35. dxe6 {[%emt 0:00:06]} Rh1# {[%emt 0:00:05] Weighted Error Value: White=0.70/Black=0.06 (flawless)} 0-1

[Event "12th WLC Weekend 2022"]
[Site "Eindhoven"]
[Date "2022.05.13"]
[Round "1.2"]
[White "Roebers, Eline"]
[Black "Koster, Chiel"]
[Result "1/2-1/2"]
[ECO "B33"]
[WhiteElo "2369"]
[BlackElo "1924"]
[Annotator "TA"]
[PlyCount "122"]
[EventDate "2022.05.13"]
[EventType "swiss"]
[EventCountry "NED"]
[SourceTitle "playchess.com"]
[Source "ChessBase"]
[SourceQuality "1"]
[TimeControl "5400+30"]

{[%evp 21,122,31,20,21,34,31,33,21,77,64,92,77,81,79,64,77,76,63,66,69,72,71,80,83,81,75,89,33,38,41,40,29,45,47,42,41,45,27,32,18,16,14,62,8,8,8,16,8,8,8,16,17,85,85,85,15,20,8,8,8,8,8,8,8,8,8,8,8,8,8,8,8,8,8,8,8,8,0,8,8,8,8,8,8,8,8,8,8,8,8,8,8,8,8,8,8,8,8,8,0,8,8,8]} 1. e4 {[%emt 0:00:02]} c5 {[%emt 0:00:03]} 2. Nf3 {[%emt 0:00:04]} Nc6 {[%emt 0:00:03]} 3. d4 {[%emt 0:00:03]} cxd4 {[%emt 0:00:03]} 4. Nxd4 {[%emt 0:00:04]} Nf6 {[%emt 0:00:04]} 5. Nc3 {[%emt 0:00:04]} e5 {[%emt 0:00:04]} 6. Ndb5 {[%emt 0:00:03]} d6 {[%emt 0:00:03]} 7. Bg5 {[%emt 0:00:03]} a6 {[%emt 0:00:05]} 8. Na3 {[%emt 0:00:02]} b5 {[%emt 0:00:05]} 9. Bxf6 {[%emt 0:00:04]} gxf6 {[%emt 0:00:04]} 10. Nd5 {[%emt 0:00:05]} Bg7 {[%emt 0:00:04]} 11. g3 {[%emt 0:00:03]} Ne7 {[%emt 0:00:33]} 12. Nxe7 {[%emt 0:03:19] B33: Sicilian: Pelikan and Sveshnikov Variations.} Qxe7 {[%emt 0:00:04]} 13. Bg2 {[%emt 0:04:24]} d5 {[%emt 0:01:58]} 14. Qxd5 {[%emt 0:03:09] White is slightly better.} Bb7 {[%emt 0:00:17]} (14... Rb8 $11 {remains equal.}) 15. Qb3 {[%emt 0:03:30]} f5 {[%emt 0:01:54] [#]} 16. O-O $146 {[%emt 0:02:46]} ({Predecessor:} 16. c3 fxe4 17. Nc2 Bh6 18. O-O Rd8 19. Ne3 Bxe3 20. fxe3 h5 21. Rad1 Rxd1 22. Qxd1 {1-0 (43) Edouard,R (2588)-Vega Gutierrez,S (2385) Salamanca 2021}) 16... fxe4 {[%emt 0:01:30]} 17. Rfe1 {[%emt 0:01:54]} f5 {[%emt 0:05:30]} 18. c4 {[%emt 0:01:16]} Qf7 {[%emt 0:07:19]} 19. Rad1 {[%emt 0:05:59][%cal Oa3b5]} O-O {[%emt 0:01:16]} 20. cxb5 {[%emt 0:02:49]} Qxb3 {[%emt 0:02:06]} 21. axb3 {[%emt 0:00:06]} axb5 {[%emt 0:13:56]} 22. Nxb5 {[%emt 0:00:13]} Rab8 {[%emt 0:00:22][%cal Oe4e3]} 23. Nd6 {[%emt 0:07:20]} Bc8 {[%emt 0:02:06]} 24. g4 {[%emt 0:06:15] White is more active.} (24. Bf1 $16) 24... fxg4 $14 {[%emt 0:04:47]} 25. Nxc8 {[%emt 0:01:38]} Rbxc8 {[%emt 0:01:20]} 26. Bxe4 {[%emt 0:07:42]} Rf4 {[%emt 0:07:11]} 27. Rd7 {[%emt 0:02:50]} h5 {[%emt 0:00:00]} 28. Bd5+ {[%emt 0:16:01]} Kh7 {[%emt 0:04:47]} 29. Rxe5 {[%emt 0:02:16]} Kh6 {[%emt 0:02:05] Prevents Rg5.} 30. Rd6+ {[%emt 0:02:10]} Bf6 $1 {[%emt 0:02:37]} 31. Re4 {[%emt 0:10:49]} Rd8 {[%emt 0:06:44]} (31... h4 $11 32. h3 (32. Rxf4 {leads to mate.} Rc1+ 33. Kg2 h3+ 34. Kg3 Rg1+) 32... Rc1+ 33. Kg2 gxh3+ 34. Kxh3 Rxf2 35. Rxh4+ Kg5) 32. Rxf4 {[%emt 0:11:45]} (32. Rxd8 $1 $14 Rxe4 33. Bxe4 (33. Rd6 Re1+ 34. Kg2 Kg5 $11) 33... Bxd8 34. b4) 32... Rxd6 {[%emt 0:00:02][%mdl 4096] Endgame KRB-KRB} 33. Bf7 {[%emt 0:01:10]} Bd4 {[%emt 0:02:58]} 34. Kg2 {[%emt 0:01:44]} Kg5 {[%emt 0:00:52] Prevents Rf5+.} 35. Re4 {[%emt 0:00:16]} Bxf2 {[%emt 0:03:03]} 36. Bxh5 {[%emt 0:03:20]} Rd2 {[%emt 0:02:35]} (36... Rd4 $11 37. Re2 Bh4) 37. Bxg4 $16 {[%emt 0:00:06][%cal Oe4e2]} Rxb2 {[%emt 0:01:16]} 38. Be6 {[%emt 0:02:00]} (38. Bd1 $16) 38... Bb6+ {[%emt 0:00:30] The position is equal.} 39. Kf3 {[%emt 0:01:35]} Rxh2 {[%emt 0:01:01]} 40. Bc4 {[%emt 0:00:44]} Rf2+ {[%emt 0:00:41]} 41. Kg3 {[%emt 0:00:05]} Rf6 {[%emt 0:00:08]} 42. Re5+ {[%emt 0:00:39]} Rf5 {[%emt 0:00:46]} 43. Re7 {[%emt 0:00:32]} Rf6 {[%emt 0:00:25]} 44. b4 {[%emt 0:00:49]} Bf2+ {[%emt 0:00:25]} 45. Kg2 {[%emt 0:00:08]} Bb6 {[%emt 0:00:03]} 46. b5 {[%emt 0:00:16]} Kg4 {[%emt 0:00:33]} 47. Be2+ {[%emt 0:00:31]} Kg5 {[%emt 0:00:35]} 48. Bd3 {[%emt 0:01:05]} Kg4 {[%emt 0:00:06]} 49. Be2+ {[%emt 0:00:39]} Kg5 {[%emt 0:00:13]} 50. Bf3 {[%emt 0:00:24]} Kf4 {[%emt 0:02:46]} 51. Bc6 {[%emt 0:00:21]} Kg5 {[%emt 0:02:35]} 52. Kh3 {[%emt 0:00:44]} Kf4 {[%emt 0:00:15]} 53. Re4+ {[%emt 0:00:26]} Kf5 {[%emt 0:00:07]} 54. Re2 {[%emt 0:00:35]} Kf4 {[%emt 0:00:22]} 55. Be8 {[%emt 0:00:24]} Be3 {[%emt 0:01:30]} 56. Re1 {[%emt 0:00:35]} Kf3 {[%emt 0:01:06] [#] ( -> ...Rh6+)} 57. Bh5+ {[%emt 0:00:15]} Ke4 {[%emt 0:01:03]} 58. Kg3 {[%emt 0:00:39]} Kd3 {[%emt 0:01:07] ...Bf2+ is the strong threat.} 59. Rb1 {[%emt 0:00:15]} Ke4 {[%emt 0:01:06]} 60. b6 {[%emt 0:00:28]} Rxb6 {[%emt 0:00:23]} 61. Rxb6 {[%emt 0:00:04]} Bxb6 {[%emt 0:00:58] Weighted Error Value: White=0.08 (flawless) /Black=0.07 (flawless)} 1/2-1/2

[Event "12th WLC Weekend 2022"]
[Site "Eindhoven"]
[Date "2022.05.13"]
[Round "1.3"]
[White "Suranyi, Pal"]
[Black "Grooten, Herman"]
[Result "0-1"]
[ECO "A59"]
[WhiteElo "2013"]
[BlackElo "2286"]
[Annotator "TA"]
[PlyCount "102"]
[EventDate "2022.05.13"]
[EventType "swiss"]
[EventCountry "NED"]
[SourceTitle "playchess.com"]
[Source "ChessBase"]
[SourceQuality "1"]
[TimeControl "5400+30"]

{[%evp 21,102,54,78,68,74,56,79,50,112,114,173,140,137,135,145,127,134,133,117,88,102,103,103,9,22,8,68,50,84,37,95,0,60,0,0,0,0,-152,-130,-256,-270,-398,-358,-269,-80,-118,0,-27,0,-38,-13,-8,-21,-16,-8,-12,0,-329,-325,-317,-309,-304,-301,-302,-237,-215,-66,-77,-59,-82,-24,-466,-464,-29982,-29983,-29983,-29984,-29984,-29985,-29985,-29986,-29986,-29987]} 1. d4 {[%emt 0:00:03]} Nf6 {[%emt 0:00:11]} 2. c4 {[%emt 0:00:04]} c5 {[%emt 0:00:05]} 3. d5 {[%emt 0:00:04]} b5 {[%emt 0:00:06]} 4. cxb5 {[%emt 0:00:06]} a6 {[%emt 0:00:06]} 5. bxa6 {[%emt 0:00:03]} g6 {[%emt 0:00:10]} 6. Nc3 {[%emt 0:00:06]} Bxa6 {[%emt 0:00:08]} 7. Nf3 {[%emt 0:00:12]} d6 {[%emt 0:00:14]} 8. e4 {[%emt 0:00:06]} Bxf1 {[%emt 0:00:08]} 9. Kxf1 {[%emt 0:00:05]} Nbd7 {[%emt 0:00:18]} 10. g3 {[%emt 0:00:09]} Bg7 {[%emt 0:00:12]} 11. Kg2 {[%emt 0:00:05]} O-O {[%emt 0:01:12]} 12. a4 {[%emt 0:00:30] A59: Benko/Volga Gambit: White castles by hand.} Ra6 {[%emt 0:02:16]} 13. Re1 {[%emt 0:18:55] 13.Qe2 is a critical line.} Qa8 {[%emt 0:01:35]} 14. Nb5 {[%emt 0:37:24] [#] And now Nc7 would win. White is better. has lost popularity (14.Ra3).} Rb6 $146 {[%emt 0:03:50]} (14... Rc8 $14) ({Predecessor:} 14... Rc8 15. Ra3 Ne8 16. Qc2 Nc7 17. Nxc7 Rxc7 18. b4 cxb4 19. Qxc7 bxa3 20. Bxa3 Rxa4 21. Qxd7 {0-1 (37) Vallejo Pons,F (2711)-Tregubov,P (2585) Tallinn 2016}) 15. Ra3 {[%emt 0:12:40]} Ng4 {[%emt 0:06:40]} (15... Rfb8 $16 {might work better.} 16. Nd2 R6b7) 16. Qe2 {[%emt 0:04:30]} Qb7 {[%emt 0:07:40]} 17. Nd2 {[%emt 0:06:38]} Ngf6 {[%emt 0:06:57]} 18. f4 {[%emt 0:02:34]} Ne8 {[%emt 0:11:37]} 19. Nc4 {[%emt 0:07:36]} Ra6 {[%emt 0:00:12]} 20. g4 {[%emt 0:04:58]} e6 {[%emt 0:00:42]} 21. dxe6 {[%emt 0:01:14]} fxe6 {[%emt 0:00:13]} 22. Qf3 {[%emt 0:02:22]} (22. g5 $16) 22... Ne5 $1 $11 {[%emt 0:15:16]} 23. Nxe5 {[%emt 0:00:51]} Bxe5 {[%emt 0:00:23]} (23... dxe5 $11 24. f5 (24. Be3 c4 $11) 24... exf5) 24. h4 {[%emt 0:00:32]} Bg7 {[%emt 0:02:51] [#]} 25. g5 {[%emt 0:00:30]} (25. h5 $1 $16) 25... e5 {[%emt 0:04:01]} (25... Nc7 $14) 26. Nc3 {[%emt 0:00:03]} (26. f5 $16) 26... Nc7 {[%emt 0:00:35]} ({Black should play} 26... exf4 $11 27. Nd5 Be5) 27. Qd3 {[%emt 0:00:53]} (27. f5 $1 $14) 27... exf4 {[%emt 0:00:34] Threatens to win with ...f3+.} 28. Rf1 {[%emt 0:00:19]} Be5 {[%emt 0:00:56]} 29. Kf3 $2 {[%emt 0:00:46]} ({Better is} 29. Nd5 $11 Nxd5 30. Qxd5+ Qxd5 31. exd5) 29... Kg7 {[%emt 0:01:33] Black is more active.} 30. h5 {[%emt 0:00:13]} (30. Kg2 $17) 30... Ne6 $19 {[%emt 0:00:12]} (30... gxh5 $2 31. Rh1 $19) 31. hxg6 {[%emt 0:00:35]} (31. Kf2 {was necessary.}) 31... Nxg5+ {[%emt 0:00:36]} 32. Ke2 {[%emt 0:00:25]} h6 {[%emt 0:05:43] Really sharp!} (32... Kxg6 33. Nd5 $15) (32... hxg6 $2 33. Rg1 Ne6 34. Kd1 $19) (32... Rb6 $19 {has better winning chances.} 33. gxh7 Rxb2+ 34. Kd1 Rg2) 33. Nd5 {[%emt 0:00:17]} Ne6 {[%emt 0:00:30]} ({Stronger than} 33... Kxg6 34. Qb5 Rb8 35. Bxf4 $15) (33... c4 $17 34. Qc2 (34. Qxc4 $2 Rc6 $19) 34... Kxg6 35. Bxf4 Qxb2 36. Qxb2 Bxb2) 34. Kd1 {[%emt 0:00:49]} Ra7 {[%emt 0:00:53]} 35. a5 {[%emt 0:00:26]} Qa6 {[%emt 0:04:23]} (35... Bxb2 $2 36. a6 Qb8 37. Rb3 Qxb3+ 38. Qxb3 $18) 36. Qxa6 {[%emt 0:00:44]} Rxa6 {[%emt 0:00:04]} 37. b4 {[%emt 0:00:08]} Rb8 {[%emt 0:01:38]} (37... cxb4 {is more complex.} 38. Nxb4 Raa8 39. a6 Kxg6 40. Nd3 Ra7) 38. bxc5 {[%emt 0:00:05]} dxc5 {[%emt 0:00:19]} (38... Nxc5 {keeps more tension.} 39. Bxf4 Nxe4 40. Bc1 Rb1) 39. Bxf4 $2 {[%emt 0:00:04][%mdl 8192]} (39. Nxf4 $11 {and White has nothing to worry.} Bxf4 40. Bxf4 Nxf4 41. Rxf4) 39... Nxf4 {[%emt 0:00:24]} 40. Rxf4 {[%emt 0:01:12]} Bxf4 {[%emt 0:00:29]} 41. Nxf4 $11 {[%emt 0:00:04][%mdl 4096] Endgame KRR-KRN} Rf8 {[%emt 0:02:17]} 42. Nd3 {[%emt 0:01:09]} Rc8 {[%emt 0:02:29]} 43. Nf4 {[%emt 0:00:51] [#]} Re8 {[%emt 0:00:50]} (43... c4 $1 $19 {Hoping for ...Re8.} 44. Kd2 Rc5) 44. Rd3 {[%emt 0:00:22]} Re7 {[%emt 0:02:32] Prevents Rd7.} ({Of course not} 44... Rxe4 45. Rd7+ Kh8 46. Rd8+ Kg7 47. Rd7+ Kh8 48. Rd8+ Kg7 49. Rd7+ $11) 45. e5 $1 {[%emt 0:00:29]} Rxa5 {[%emt 0:03:39]} (45... Raa7 $17 46. e6 Rxa5) 46. e6 {[%emt 0:00:03][%mdl 8192] This costs White the game.} (46. Rd6 $1 $11 {and White is okay.} Ra8 47. Nh5+ Kg8 48. e6) 46... Ra4 $19 {[%emt 0:00:45]} 47. Rd7 {[%emt 0:00:05]} (47. Rf3 $19 Re4 48. Kd2) 47... Rxd7+ {[%emt 0:01:08] Black mates.} 48. exd7 {[%emt 0:00:39]} Rxf4 {[%emt 0:00:12]} 49. d8=Q {[%emt 0:00:26]} Rd4+ {[%emt 0:00:05]} 50. Qxd4+ {[%emt 0:00:08]} cxd4 {[%emt 0:00:05]} 51. Kd2 {[%emt 0:00:17]} h5 {[%emt 0:00:45] Weighted Error Value: White=0.79/Black=0.34} 0-1

[Event "12th WLC Weekend 2022"]
[Site "Eindhoven"]
[Date "2022.05.13"]
[Round "1.4"]
[White "Baselmans, Luuk"]
[Black "Simons, Rudy"]
[Result "1-0"]
[ECO "B51"]
[WhiteElo "2233"]
[BlackElo "2046"]
[Annotator "TA"]
[PlyCount "101"]
[EventDate "2022.05.13"]
[EventType "swiss"]
[EventCountry "NED"]
[SourceTitle "playchess.com"]
[Source "ChessBase"]
[SourceQuality "1"]
[TimeControl "5400+30"]

{[%evp 9,101,16,10,15,13,14,24,10,32,8,14,6,33,35,36,36,35,35,35,34,72,68,77,69,90,77,90,84,86,78,80,82,85,85,80,85,88,91,89,91,91,91,95,28,22,22,26,35,31,30,79,37,38,43,129,129,177,175,255,241,279,268,278,272,256,210,201,157,149,159,287,287,282,279,266,260,307,303,388,266,378,364,370,356,338,339,494,490,517,428,525,512,1087,1031]} 1. e4 {[%emt 0:00:03]} c5 {[%emt 0:00:10]} 2. Nf3 {[%emt 0:00:13]} d6 {[%emt 0:00:09]} 3. Bb5+ {[%emt 0:00:08]} Nd7 {[%emt 0:00:21]} 4. Ba4 {[%emt 0:00:15]} Ngf6 {[%emt 0:00:12]} 5. O-O {[%emt 0:00:08]} g6 {[%emt 0:00:15]} 6. Re1 {[%emt 0:00:19] B51: Sicilian: Moscow Variation (3 Bb5+) without 3...Bd7.} Bg7 {[%emt 0:00:14]} 7. c3 {[%emt 0:00:20]} O-O {[%emt 0:01:26]} 8. d4 {[%emt 0:00:25] White has an edge.} e5 {[%emt 0:01:29]} 9. Bg5 {[%emt 0:01:15] [#]} h6 $146 {[%emt 0:07:29]} (9... Qc7 10. Nbd2 a6 11. Nf1 b5 12. Bc2 Bb7 13. Ng3 h6 14. Bxf6 Nxf6 15. a4 Rfe8 {1-0 (44) Baselmans,L (2270)-Simons,R (2051) Eindhoven 2019}) ({Predecessor:} 9... cxd4 10. cxd4 exd4 11. Nxd4 Qa5 12. Bf4 {½-½ (12) Pap,G (2535)-Manik,M (2353) Piestany 2021}) 10. Bxd7 {[%emt 0:01:28]} (10. Bxf6 {looks sharper.} Bxf6 11. Bxd7 Qxd7 12. dxe5 dxe5 13. Qe2) 10... Bxd7 {[%emt 0:00:33]} 11. Bxf6 {[%emt 0:02:21]} Bxf6 {[%emt 0:00:32]} 12. dxc5 {[%emt 0:00:09]} dxc5 {[%emt 0:00:19]} 13. c4 {[%emt 0:00:09]} Be6 {[%emt 0:11:13]} 14. Qe2 {[%emt 0:04:40]} g5 {[%emt 0:04:25]} 15. Nc3 {[%emt 0:00:57]} g4 {[%emt 0:08:39]} 16. Nd2 {[%emt 0:00:15]} Bg5 {[%emt 0:00:10]} 17. Nf1 {[%emt 0:03:15]} Qf6 {[%emt 0:11:06]} 18. Ng3 {[%emt 0:03:23]} Qg6 {[%emt 0:01:17]} 19. Rad1 {[%emt 0:02:11]} h5 {[%emt 0:01:15]} 20. Nd5 {[%emt 0:01:17]} h4 {[%emt 0:00:34]} 21. Nf5 {[%emt 0:05:32]} Bxf5 {[%emt 0:00:26]} 22. exf5 {[%emt 0:00:08]} Qxf5 {[%emt 0:00:28]} 23. Qxe5 {[%emt 0:00:31]} Qxe5 {[%emt 0:01:09]} 24. Rxe5 {[%emt 0:00:07]} f6 {[%emt 0:00:20]} 25. Re7 {[%emt 0:04:34]} Rf7 {[%emt 0:01:19]} 26. Rxf7 {[%emt 0:01:12] White is more active.} (26. h3 $16) 26... Kxf7 $16 {[%emt 0:00:08][%mdl 4096] Endgame KRB-KRN} 27. Nc7 {[%emt 0:00:07]} Rb8 {[%emt 0:07:27]} 28. Rd7+ {[%emt 0:01:20]} Kg6 {[%emt 0:00:18]} 29. g3 {[%emt 0:00:50]} h3 {[%emt 0:00:58] [#]} (29... b6 $11 {is more appropriate.}) 30. f4 $1 {[%emt 0:00:15]} gxf3 {[%emt 0:00:16]} 31. Kf2 {[%emt 0:00:10] Inhibits Be3+.} Bc1 {[%emt 0:02:56]} (31... b5 $14 32. cxb5 c4) 32. b3 {[%emt 0:01:10]} Bb2 {[%emt 0:01:07]} (32... b6 $16) 33. Kxf3 $18 {[%emt 0:00:56]} b6 {[%emt 0:00:43]} (33... Bc1 $142 34. Ne6 b6) 34. Nd5 {[%emt 0:03:19]} a6 {[%emt 0:07:46]} 35. Nf4+ {[%emt 0:00:22]} Kh6 {[%emt 0:00:28]} 36. Nxh3 {[%emt 0:04:29]} b5 {[%emt 0:00:18]} 37. Rd2 {[%emt 0:02:48]} Bd4 {[%emt 0:00:45]} 38. cxb5 {[%emt 0:00:29]} axb5 {[%emt 0:00:12]} 39. Nf4 {[%emt 0:00:20]} b4 {[%emt 0:05:29]} (39... Be5 $16 40. Rc2 Rc8) 40. Ne6 {[%emt 0:01:13]} Bc3 {[%emt 0:00:22]} 41. Rd8 {[%emt 0:00:32]} Rb5 {[%emt 0:01:20]} 42. Ra8 {[%emt 0:02:22] Inhibits Ra5.} c4 {[%emt 0:00:51]} 43. bxc4 {[%emt 0:02:08]} Rb6 {[%emt 0:03:54]} 44. Rh8+ {[%emt 0:01:49]} Kg6 {[%emt 0:00:02]} 45. Nf4+ {[%emt 0:00:08]} Kg7 {[%emt 0:00:27]} 46. Ra8 {[%emt 0:01:02] [#] And now c5 would win.} Rc6 {[%emt 0:00:39]} 47. c5 {[%emt 0:00:08] Black must now prevent Ke4.} Kh6 {[%emt 0:00:11]} (47... Kf7 {was worth a try.} 48. Ra7+ Ke8) 48. Nd3 {[%emt 0:00:44] White is clearly winning.} Bd4 {[%emt 0:01:33]} 49. Ra5 {[%emt 0:02:28]} f5 {[%emt 0:03:05]} 50. Rb5 {[%emt 0:00:14]} Bc3 {[%emt 0:00:14]} (50... b3 $142) 51. Rb6 {[%emt 0:00:07] Weighted Error Value: White=0.07 (flawless) /Black=0.27 (precise)} 1-0

[Event "12th WLC Weekend 2022"]
[Site "Eindhoven"]
[Date "2022.05.13"]
[Round "1.5"]
[White "Van de Lagemaat, Arend"]
[Black "Klapwijk, Bram"]
[Result "0-1"]
[ECO "D77"]
[WhiteElo "1995"]
[BlackElo "2245"]
[Annotator "TA"]
[PlyCount "68"]
[EventDate "2022.05.13"]
[EventType "swiss"]
[EventCountry "NED"]
[SourceTitle "playchess.com"]
[Source "ChessBase"]
[SourceQuality "1"]
[TimeControl "5400+30"]

{[%evp 15,68,28,29,27,38,31,58,-12,2,0,0,-41,-18,-52,0,-127,-120,-125,-111,-114,-125,-116,-130,-118,-118,-120,-127,-235,-234,-211,-217,-246,-129,-120,-141,-156,-156,-156,-155,-156,-158,-433,-427,-500,-400,-631,-562,-625,-598,-29973,-29974,-29972,-29970,-29968,-29956]} 1. d4 {[%emt 0:00:06]} d5 {[%emt 0:00:08]} 2. Nf3 {[%emt 0:00:06]} Nf6 {[%emt 0:00:28]} 3. g3 {[%emt 0:00:06]} g6 {[%emt 0:00:48]} 4. Bg2 {[%emt 0:00:05]} Bg7 {[%emt 0:00:03]} 5. O-O {[%emt 0:00:08]} O-O {[%emt 0:00:04]} 6. c4 {[%emt 0:00:04]} dxc4 {[%emt 0:00:04]} 7. Na3 {[%emt 0:00:07]} c3 {[%emt 0:02:45]} 8. bxc3 {[%emt 0:00:06]} c5 {[%emt 0:00:06]} 9. Re1 {[%emt 0:01:45] D77: Fianchetto Grünfeld: 6 0-0: Replies other than 6...c6.} Nc6 {[%emt 0:14:57]} 10. Bb2 {[%emt 0:00:18]} Bf5 {[%emt 0:07:12] [#]} 11. Qb3 $146 {[%emt 0:13:50]} (11. d5 $14 Na5 12. c4) ({Predecessor:} 11. d5 Nxd5 12. e4 Bxe4 13. Rxe4 Nxc3 14. Bxc3 Bxc3 15. Rb1 Qxd1+ 16. Rxd1 Rad8 17. Rb1 {1-0 (36) So,W (2770)-Duda,J (2743) Chess.com INT 2020}) 11... a6 {[%emt 0:08:58]} 12. Nc4 {[%emt 0:11:29]} (12. Qxb7 $2 Na5 13. Qxa8 Qxa8 $19) 12... b5 {[%emt 0:18:35]} 13. Ncd2 {[%emt 0:01:04]} Ne4 $1 {[%emt 0:04:16]} 14. Rad1 {[%emt 0:17:46]} Qc7 {[%emt 0:10:00]} ({Reject} 14... cxd4 15. Nxd4 Nxd2 16. Rxd2 Nxd4 17. cxd4 $11) (14... Na5 $15 15. Qa3 Rc8) 15. Nh4 {[%emt 0:07:25]} (15. Qa3 $11) 15... Na5 $1 $17 {[%emt 0:03:00] Black is more active.} 16. Qc2 {[%emt 0:04:15] [#]} Nxf2 {[%emt 0:10:04][%mdl 512]} 17. Nxf5 {[%emt 0:04:11]} Nxd1 {[%emt 0:00:16]} 18. Rxd1 {[%emt 0:01:14]} gxf5 {[%emt 0:08:13]} 19. Bxa8 {[%emt 0:00:56] [#]} cxd4 $1 {[%emt 0:03:21]} 20. Qxf5 {[%emt 0:03:40] [#] Threatens to win with Be4.} e6 $1 {[%emt 0:00:43]} 21. Qf3 {[%emt 0:24:27]} (21. Qf4 $17 Qxf4 22. gxf4) 21... dxc3 $19 {[%emt 0:00:24]} 22. Bxc3 {[%emt 0:04:06]} Bxc3 {[%emt 0:01:14]} ({Worse is} 22... Qxc3 23. Qxc3 Bxc3 24. Be4 $17) 23. Ne4 {[%emt 0:00:55]} Qa7+ {[%emt 0:05:41]} ({And not} 23... Rxa8 24. Nxc3 Rd8 25. Qg4+ Kh8 26. Rxd8+ Qxd8 27. Qf4 $11) ({Black should play} 23... Bb2 $19 {Hoping for ...Qa7+.} 24. Nf2 f5) 24. Kf1 {[%emt 0:02:28]} Qxa8 {[%emt 0:00:04]} 25. Nxc3 {[%emt 0:00:53]} Qxf3+ {[%emt 0:00:11]} 26. exf3 $17 {[%emt 0:00:06][%mdl 4096] Endgame KRN-KRN} Rc8 {[%emt 0:00:42]} 27. Ne4 {[%emt 0:01:17]} Rc2 {[%emt 0:00:40]} 28. Kg1 $2 {[%emt 0:00:47] This costs White the game.} (28. Rd8+ $17 Kg7 29. Rd2 Rc1+ 30. Kf2) 28... Rxa2 $19 {[%emt 0:00:15]} 29. Rd7 {[%emt 0:00:25]} h6 {[%emt 0:00:58]} 30. Nd6 {[%emt 0:00:43]} (30. Rd2 $142 Ra1+ 31. Kf2) 30... Rd2 {[%emt 0:00:57]} 31. Rd8+ {[%emt 0:00:34]} Kh7 {[%emt 0:00:00] ...Nc4 is the strong threat.} 32. Nxf7 {[%emt 0:00:35]} Rxd8 {[%emt 0:00:00] Black mates.} 33. Nxd8 {[%emt 0:00:11]} b4 {[%emt 0:00:00][%cal Bb5b4,Bb4b3][%mdl 32]} 34. Nxe6 {[%emt 0:00:31]} b3 {[%emt 0:00:00] Weighted Error Value: White=0.71/Black=0.13 (very precise)} 0-1